bitfinex/quotes_SOLUSD_20250612
["timestamp","ask_amount","ask_price","bid_price","bid_amount"]
[1749729109061,26.0,157.89,157.87,14.11743221]
[1749729109285,26.72,157.88,157.87,14.11743221]
[1749729111171,33.05392449,157.88,157.82,1.6224]
[1749729111365,33.05392449,157.88,157.85,14.11743221]
[1749729111366,48.88873573,157.88,157.85,14.11743221]
[1749729111682,48.88873573,157.88,157.86,14.11743221]
[1749729112876,48.88873573,157.88,157.85,14.11743221]
[1749729113098,48.88873573,157.88,157.84,14.11743221]
[1749729115089,6.33552965,157.84,157.82,14.11743221]
[1749729115267,26.72,157.83,157.82,14.11743221]
[1749729115963,26.72,157.83,157.81,14.11743221]
[1749729116683,26.72,157.83,157.82,14.11743221]
[1749729117182,33.05593106,157.83,157.78,7.7038]
[1749729117392,33.05593106,157.83,157.82,14.11743221]
[1749729117888,33.05593106,157.83,157.78,7.7038]
[1749729118086,33.05593106,157.83,157.81,14.11743221]
[1749729118887,26.72,157.83,157.82,14.11743221]
[1749729119068,33.05593106,157.83,157.82,14.11743221]
[1749729120773,48.89575872,157.83,157.81,14.11743221]
[1749729120973,48.89575872,157.83,157.8,14.11743221]
[1749729121164,48.89575872,157.83,157.81,14.11743221]
[1749729122190,48.89575872,157.83,157.8,14.11743221]
[1749729122564,14.11743221,157.81,157.75,14.11743221]
[1749729122768,40.83743221,157.8,157.75,14.11743221]
[1749729123095,34.1487,157.82,157.75,14.11743221]
[1749729123096,52.72,157.79,157.75,14.11743221]
[1749729123262,26.72,157.78,157.75,14.11743221]
[1749729123466,26.72,157.78,157.76,14.11743221]
[1749729123769,6.3379389,157.78,157.77,14.11743221]
[1749729123978,33.0579389,157.78,157.77,14.11743221]
[1749729124881,33.0579389,157.78,157.72,1.6147]
[1749729125082,33.0579389,157.78,157.74,14.11743221]
[1749729125291,48.90278615,157.78,157.74,14.11743221]
[1749729125500,63.02021836,157.78,157.73,14.11743221]
[1749729126194,14.11743221,157.77,157.72,14.11743221]
[1749729126369,26.72,157.76,157.73,14.11743221]
[1749729126570,52.72,157.76,157.68,15.74733221]
[1749729126783,52.72,157.76,157.67,8.33333333]
[1749729126784,66.83743221,157.76,157.67,8.33333333]
[1749729126997,66.83743221,157.76,157.71,14.11743221]
[1749729127201,14.11743221,157.75,157.7,14.11743221]
[1749729127502,26.72,157.74,157.7,14.11743221]
[1749729127873,26.72,157.74,157.71,14.11743221]
[1749729128074,6.33994801,157.73,157.71,14.11743221]
[1749729128298,26.72,157.72,157.71,14.11743221]
[1749729128702,26.72,157.72,157.69,14.11743221]
[1749729128997,26.72,157.72,157.7,14.11743221]
[1749729130293,26.72,157.72,157.67,8.33333333]
[1749729130294,6.34075201,157.71,157.69,14.11743221]
[1749729130509,26.72,157.7,157.68,14.11743221]
[1749729130678,26.72,157.7,157.69,14.11743221]
[1749729131098,26.72,157.7,157.67,8.33333333]
[1749729131303,26.72,157.7,157.69,14.11743221]
[1749729132298,26.72,157.7,157.67,8.33333333]
[1749729132478,26.72,157.7,157.69,14.11743221]
[1749729132679,33.06115409,157.7,157.69,14.11743221]
[1749729133178,33.06115409,157.7,157.67,8.33333333]
[1749729133396,33.06115409,157.7,157.68,14.11743221]
[1749729133898,33.06115409,157.7,157.69,14.11743221]
[1749729134284,33.06115409,157.7,157.67,8.33333333]
[1749729134489,33.06115409,157.7,157.69,14.11743221]
[1749729135704,26.72,157.7,157.69,14.11743221]
[1749729135889,33.06115409,157.7,157.69,14.11743221]
[1749729137505,33.06115409,157.7,157.67,8.33333333]
[1749729137682,33.06115409,157.7,157.69,14.11743221]
[1749729137877,33.06115409,157.7,157.67,8.33333333]
[1749729138109,33.06115409,157.7,157.69,14.11743221]
[1749729138921,26.72,157.7,157.69,14.11743221]
[1749729139481,33.06115409,157.7,157.69,14.11743221]
[1749729142797,26.72,157.7,157.69,14.11743221]
[1749729143806,6.34034998,157.72,157.69,14.11743221]
[1749729144013,26.74,157.71,157.68,14.11743221]
[1749729144213,26.74,157.71,157.7,14.11743221]
[1749729145710,25.78632223,157.71,157.7,14.11743221]
[1749729146717,32.12707424,157.71,157.7,14.11743221]
[1749729146913,26.72,157.71,157.7,14.11743221]
[1749729147123,6.33954608,157.74,157.7,14.11743221]
[1749729147301,6.33954608,157.74,157.73,14.11743221]
[1749729148914,22.1879991,157.75,157.73,14.11743221]
[1749729149098,22.1879991,157.75,157.74,14.11743221]
[1749729151411,22.1879991,157.75,157.68,14.11743221]
[1749729151615,22.1879991,157.75,157.74,14.11743221]
[1749729152323,22.1879991,157.75,157.68,14.11743221]
[1749729152511,22.1879991,157.75,157.74,14.11743221]
[1749729155522,22.1879991,157.75,157.68,14.11743221]
[1749729155710,22.1879991,157.75,157.74,14.11743221]
[1749729160803,22.1879991,157.75,157.68,14.11743221]
[1749729161003,22.1879991,157.75,157.74,14.11743221]
[1749729163108,26.8539119,157.75,157.74,14.11743221]
[1749729174129,11.00505701,157.75,157.74,14.11743221]
[1749729174329,6.33914421,157.75,157.74,28.23486442]
[1749729175042,6.33914421,157.75,157.74,14.11743221]
[1749729176540,6.33874239,157.76,157.74,14.11743221]
[1749729176733,6.33874239,157.76,157.75,14.11743221]
[1749729179942,6.33874239,157.76,157.75,28.23486442]
[1749729180240,6.3379389,157.78,157.75,28.23486442]
[1749729180445,6.3379389,157.78,157.77,14.11743221]
[1749729181826,6.1733764,157.78,157.77,14.11743221]
[1749729183442,22.01822365,157.78,157.7,1.6532]
[1749729183621,4.68893908,157.77,157.76,14.11743221]
[1749729184418,22.01822365,157.78,157.76,14.11743221]
[1749729184419,26.70716273,157.78,157.76,14.11743221]
[1749729184739,4.68893908,157.77,157.7,1.6532]
[1749729184945,26.70716273,157.78,157.76,14.11743221]
[1749729185245,26.70197117,157.78,157.77,14.11743221]
[1749729185442,22.01822365,157.78,157.77,14.11743221]
[1749729185656,6.1733764,157.78,157.77,14.11743221]
[1749729186918,26.0,157.75,157.67,8.33333333]
[1749729187124,26.0,157.75,157.68,14.11743221]
[1749729187429,25.35502472,157.77,157.67,8.33333333]
[1749729187430,26.0,157.73,157.71,14.11743221]
[1749729188443,26.0,157.73,157.72,14.11743221]
[1749729188944,32.33994801,157.73,157.72,14.11743221]
[1749729190926,6.33994801,157.73,157.72,14.11743221]
[1749729193040,6.33954608,157.74,157.72,14.11743221]
[1749729193228,6.33954608,157.74,157.73,14.11743221]
[1749729193748,6.33954608,157.74,157.68,14.11743221]
[1749729194054,6.33954608,157.74,157.73,14.11743221]
[1749729197348,6.33874239,157.76,157.73,14.11743221]
[1749729197548,6.33874239,157.76,157.75,14.11743221]
[1749729198938,22.18559837,157.76,157.75,14.11743221]
[1749729199256,26.86994681,157.76,157.75,14.11743221]
[1749729199562,22.18559837,157.76,157.75,14.11743221]
[1749729200265,6.33874239,157.76,157.75,14.11743221]
[1749729201159,6.33874239,157.76,157.75,28.23486442]
[1749729201461,6.33753723,157.79,157.75,28.23486442]
[1749729201669,6.33753723,157.79,157.78,14.11743221]
[1749729202254,6.33673404,157.81,157.78,14.11743221]
[1749729202440,6.33673404,157.81,157.8,14.11743221]
[1749729203566,6.33633253,157.82,157.8,14.11743221]
[1749729203760,6.33633253,157.82,157.81,14.11743221]
[1749729204051,11.01688908,157.82,157.81,14.11743221]
[1749729204752,6.33633253,157.82,157.81,14.11743221]
[1749729204943,11.01577911,157.82,157.81,14.11743221]
[1749729206258,26.85661043,157.82,157.76,14.11743221]
[1749729206433,26.0,157.8,157.76,14.11743221]
[1749729206757,26.0,157.8,157.79,14.11743221]
[1749729207560,32.33713561,157.8,157.79,14.11743221]
[1749729209335,6.33713561,157.8,157.79,14.11743221]
[1749729209531,15.84083132,157.82,157.79,14.11743221]
[1749729209738,15.84083132,157.82,157.81,14.11743221]
[1749729210855,22.17716385,157.82,157.76,14.11743221]
[1749729211053,22.17716385,157.82,157.81,14.11743221]
[1749729211434,22.17716385,157.82,157.76,14.11743221]
[1749729211637,22.17716385,157.82,157.81,14.11743221]
[1749729211874,58.81836874,157.82,157.8,14.11743221]
[1749729212083,26.0,157.78,157.68,14.11743221]
[1749729212243,30.6752191,157.78,157.76,14.11743221]
[1749729212562,26.0,157.78,157.76,14.11743221]
[1749729212962,6.33834062,157.77,157.76,14.11743221]
[1749729216763,22.18419217,157.77,157.75,14.11743221]
[1749729216960,22.18419217,157.77,157.76,14.11743221]
[1749729217573,22.18419217,157.77,157.69,18.64964886]
[1749729217955,22.18419217,157.77,157.76,14.11743221]
[1749729219963,22.18419217,157.77,157.69,18.64964886]
[1749729220153,22.18419217,157.77,157.76,14.11743221]
[1749729222451,22.18419217,157.77,157.69,18.64964886]
[1749729222645,22.18419217,157.77,157.76,14.11743221]
[1749729222873,6.33834062,157.77,157.76,14.11743221]
[1749729224069,6.3379389,157.78,157.76,14.11743221]
[1749729224273,6.3379389,157.78,157.77,14.11743221]
[1749729229280,22.18278615,157.78,157.77,14.11743221]
[1749729229661,26.86193767,157.78,157.77,14.11743221]
[1749729230175,26.86193767,157.78,157.76,14.11743221]
[1749729230474,22.18278615,157.78,157.76,14.11743221]
[1749729233783,26.86193767,157.78,157.76,14.11743221]
[1749729233982,22.18278615,157.78,157.76,14.11743221]
[1749729234278,26.0,157.74,157.72,14.11743221]
[1749729234465,26.0,157.74,157.73,14.11743221]
[1749729236474,32.33954608,157.74,157.73,14.11743221]
[1749729236970,32.33954608,157.74,157.68,14.11743221]
[1749729237180,48.1884113,157.74,157.73,14.11743221]
[1749729244661,48.1884113,157.74,157.68,14.11743221]
[1749729244975,48.1884113,157.74,157.73,14.11743221]
[1749729247591,48.1884113,157.74,157.67,18.64964886]
[1749729247766,48.1884113,157.74,157.73,14.11743221]
[1749729247967,48.1884113,157.74,157.68,14.11743221]
[1749729248175,48.1884113,157.74,157.73,14.11743221]
[1749729250993,48.1884113,157.74,157.65,1.6176]
[1749729250994,0.28432314,157.73,157.65,1.6176]
[1749729251200,4.67673754,157.73,157.72,14.11743221]
[1749729251366,48.1884113,157.74,157.72,14.11743221]
[1749729251567,48.1884113,157.74,157.65,1.6176]
[1749729251767,48.1884113,157.74,157.73,14.11743221]
[1749729253275,48.1884113,157.74,157.68,14.11743221]
[1749729253482,48.1884113,157.74,157.73,14.11743221]
[1749729254893,48.1884113,157.74,157.68,14.11743221]
[1749729255191,48.1884113,157.74,157.73,14.11743221]
[1749729255604,6.33954608,157.74,157.73,14.11743221]
[1749729256275,6.33914421,157.75,157.73,14.11743221]
[1749729256477,6.33914421,157.75,157.74,14.11743221]
[1749729257383,6.33914421,157.75,157.74,9.04826887]
[1749729258883,6.33914421,157.75,157.74,45.24134435]
[1749729259286,6.33914421,157.75,157.74,28.26669462]
[1749729259799,32.33834062,157.77,157.74,28.26669462]
[1749729259993,32.33834062,157.77,157.71,18.64964886]
[1749729259994,48.18419217,157.77,157.71,18.64964886]
[1749729260293,48.18419217,157.77,157.76,14.13334731]
[1749729261875,48.18419217,157.77,157.7,20.26794886]
[1749729262080,48.18419217,157.77,157.76,14.13334731]
[1749729264070,48.18419217,157.77,157.76,28.26669462]
[1749729264270,32.33834062,157.77,157.76,28.26669462]
[1749729264477,6.33834062,157.77,157.76,28.26669462]
[1749729266071,22.18289533,157.78,157.76,28.26669462]
[1749729266276,22.18289533,157.78,157.77,14.13334731]
[1749729274603,22.18289533,157.78,157.71,18.64964886]
[1749729274784,22.18289533,157.78,157.77,14.13334731]
[1749729275490,6.3379389,157.78,157.77,14.13334731]
[1749729278607,6.33713561,157.8,157.77,14.13334731]
[1749729278812,6.33713561,157.8,157.79,14.13334731]
[1749729280590,6.33673404,157.81,157.79,14.13334731]
[1749729280792,6.33673404,157.81,157.8,14.13334731]
[1749729281615,6.33673404,157.81,157.76,18.64964886]
[1749729281915,6.33673404,157.81,157.8,14.13334731]
[1749729284703,6.33648694,157.82,157.8,14.13334731]
[1749729284900,6.33648694,157.82,157.81,14.13334731]
[1749729285490,6.33552965,157.84,157.81,28.26669462]
[1749729285695,6.33552965,157.84,157.83,28.26669462]
[1749729286711,6.33472697,157.86,157.83,28.26669462]
[1749729286896,22.1715444,157.86,157.85,14.13334731]
[1749729288712,22.1715444,157.86,157.84,14.13334731]
[1749729289110,22.1715444,157.86,157.85,14.13334731]
[1749729290509,22.1715444,157.86,157.77,18.64964886]
[1749729290826,22.1715444,157.86,157.85,14.13334731]
[1749729291827,22.1715444,157.86,157.77,18.64964886]
[1749729291999,22.1715444,157.86,157.85,14.13334731]
[1749729292200,22.1715444,157.86,157.84,14.13334731]
[1749729293032,26.0,157.83,157.76,14.13334731]
[1749729293335,26.0,157.83,157.82,14.13334731]
[1749729294026,26.0,157.83,157.76,14.13334731]
[1749729294202,26.0,157.83,157.82,14.13334731]
[1749729294806,32.33593106,157.83,157.82,14.13334731]
[1749729301637,6.33593106,157.83,157.82,28.26669462]
[1749729302441,41.83681743,157.86,157.82,28.26669462]
[1749729302645,41.83681743,157.86,157.85,14.13334731]
[1749729303441,48.1715444,157.86,157.85,14.13334731]
[1749729308421,48.1715444,157.86,157.84,14.13334731]
[1749729308620,48.1715444,157.86,157.85,14.13334731]
[1749729311230,26.0,157.83,157.82,14.13334731]
[1749729313241,32.33593106,157.83,157.82,14.13334731]
[1749729317439,79.85541404,157.83,157.8,14.13334731]
[1749729317649,4.67286561,157.82,157.76,14.13334731]
[1749729317955,4.67286561,157.82,157.8,14.13334731]
[1749729318159,4.67286561,157.82,157.76,14.13334731]
[1749729318360,0.28432314,157.81,157.79,14.13334731]
[1749729318651,4.95718875,157.81,157.78,14.13334731]
[1749729318951,0.28432314,157.81,157.78,14.13334731]
[1749729319152,26.0,157.79,157.78,14.13334731]
[1749729320034,26.0,157.77,157.72,1.6479]
[1749729320734,26.0,157.77,157.76,14.13334731]
[1749729321350,32.33834062,157.77,157.76,14.13334731]
[1749729325255,48.18419217,157.77,157.76,14.13334731]
[1749729325451,6.33834062,157.77,157.76,28.26669462]
[1749729326968,6.33753723,157.79,157.76,28.26669462]
[1749729327353,6.33753723,157.79,157.78,14.13334731]
[1749729332156,6.33673404,157.81,157.78,14.13334731]
[1749729332339,6.33673404,157.81,157.8,14.13334731]
[1749729334249,15.84078704,157.83,157.8,14.13334731]
[1749729334463,15.84078704,157.83,157.82,14.13334731]
[1749729336234,15.84078704,157.83,157.77,18.64964886]
[1749729336441,15.84078704,157.83,157.82,14.13334731]
[1749729336657,15.84078704,157.83,157.81,14.13334731]
[1749729337458,15.84078704,157.83,157.8,14.13334731]
[1749729338060,15.84078704,157.83,157.79,14.13334731]
[1749729338285,22.1767181,157.83,157.79,14.13334731]
[1749729338563,26.0,157.8,157.79,14.13334731]
[1749729340075,48.1767181,157.83,157.79,14.13334731]
[1749729340259,48.1767181,157.83,157.76,14.13334731]
[1749729340260,48.1767181,157.83,157.81,14.13334731]
[1749729340453,26.0,157.81,157.8,14.13334731]
[1749729341345,6.33673404,157.81,157.8,14.13334731]
[1749729347653,32.33673404,157.81,157.8,14.13334731]
[1749729350861,32.33673404,157.81,157.79,14.13334731]
[1749729351259,32.33673404,157.81,157.8,14.13334731]
[1749729354161,32.33673404,157.81,157.79,14.13334731]
[1749729354358,48.17856915,157.81,157.78,14.13334731]
[1749729356452,48.17856915,157.81,157.77,14.13334731]
[1749729356660,62.31191646,157.81,157.77,14.13334731]
[1749729356951,62.31191646,157.81,157.73,18.64964886]
[1749729356952,14.13334731,157.8,157.76,14.13334731]
[1749729357256,40.13334731,157.8,157.76,14.13334731]
[1749729358164,6.33753723,157.79,157.76,14.13334731]
[1749729358363,22.18138031,157.79,157.76,14.13334731]
[1749729358566,22.18138031,157.79,157.75,14.13334731]
[1749729359667,26.0,157.77,157.76,14.13334731]
[1749729360379,32.33834062,157.77,157.76,14.13334731]
[1749729360898,6.33834062,157.77,157.76,14.13334731]
[1749729361473,32.33834062,157.77,157.76,14.13334731]
[1749729362168,32.33834062,157.77,157.75,14.13334731]
[1749729362369,32.33834062,157.77,157.72,1.6479]
[1749729362571,32.33834062,157.77,157.73,14.13334731]
[1749729362868,48.18419217,157.77,157.73,14.13334731]
[1749729363179,62.31753948,157.77,157.71,6.0]
[1749729363381,62.31753948,157.77,157.73,14.13334731]
[1749729363569,48.18419217,157.77,157.73,14.13334731]
[1749729364078,48.18419217,157.77,157.74,14.13334731]
[1749729364859,32.33834062,157.77,157.75,14.13334731]
[1749729365684,6.33713561,157.8,157.76,14.13334731]
[1749729365874,32.33713561,157.8,157.77,14.13334731]
[1749729366569,32.33713561,157.8,157.76,14.13334731]
[1749729367664,62.31332195,157.8,157.73,20.25804886]
[1749729367866,14.13334731,157.79,157.74,14.13334731]
[1749729368069,62.31332195,157.8,157.75,14.13334731]
[1749729368475,14.13334731,157.79,157.75,14.13334731]
[1749729368779,14.13334731,157.79,157.74,14.13334731]
[1749729368992,14.13334731,157.78,157.71,6.0]
[1749729369164,48.17997464,157.8,157.71,6.0]
[1749729369165,6.33874239,157.76,157.72,14.13334731]
[1749729369488,6.33874239,157.76,157.73,14.13334731]
[1749729369667,6.33874239,157.76,157.74,14.13334731]
[1749729369869,6.33874239,157.76,157.71,6.0]
[1749729369870,6.33874239,157.76,157.73,14.13334731]
[1749729370175,6.33874239,157.76,157.72,14.13334731]
[1749729372989,6.33874239,157.76,157.73,14.13334731]
[1749729374184,6.33874239,157.76,157.75,14.13334731]
[1749729374484,6.33874239,157.76,157.74,14.13334731]
[1749729374791,6.33874239,157.76,157.75,14.13334731]
[1749729378193,6.33874239,157.76,157.74,14.13334731]
[1749729379767,6.33874239,157.76,157.66,26.0]
[1749729379983,14.13334731,157.75,157.7,14.13334731]
[1749729380191,22.18559837,157.76,157.71,14.13334731]
[1749729380192,6.33954608,157.74,157.71,14.13334731]
[1749729380709,6.33954608,157.74,157.72,14.13334731]
[1749729381598,6.33874239,157.76,157.73,14.13334731]
[1749729383591,6.33874239,157.76,157.69,18.933972]
[1749729383896,6.33874239,157.76,157.73,14.13334731]
[1749729384679,6.33874239,157.76,157.69,18.933972]
[1749729384680,14.13334731,157.75,157.69,18.933972]
[1749729384879,6.33874239,157.76,157.72,14.13334731]
[1749729386010,6.33874239,157.76,157.73,14.13334731]
[1749729386223,26.0,157.74,157.69,18.64964886]
[1749729386505,6.33874239,157.76,157.72,14.13334731]
[1749729386679,32.33874239,157.76,157.73,14.13334731]
[1749729386880,32.33874239,157.76,157.74,14.13334731]
[1749729387193,32.33874239,157.76,157.75,14.13334731]
[1749729387376,32.33874239,157.76,157.74,14.13334731]
[1749729387576,6.33808365,157.78,157.75,14.13334731]
[1749729387777,6.33713561,157.8,157.76,14.13334731]
[1749729388206,26.0,157.79,157.76,14.13334731]
[1749729389601,32.3379389,157.78,157.76,14.13334731]
[1749729392303,32.3379389,157.78,157.73,0.28432314]
[1749729392806,32.3379389,157.78,157.76,14.13334731]
[1749729393904,32.33757369,157.79,157.76,14.13334731]
[1749729397605,32.33757369,157.79,157.7,18.933972]
[1749729397811,32.33757369,157.79,157.76,14.13334731]
[1749729399106,32.33757369,157.79,157.73,18.64964886]
[1749729399311,32.33757369,157.79,157.76,14.13334731]
[1749729407512,6.33729328,157.8,157.76,14.13334731]
[1749729407818,14.13334731,157.81,157.78,14.13334731]
[1749729407819,32.33690341,157.81,157.78,14.13334731]
[1749729408018,32.33690341,157.81,157.77,14.13334731]
[1749729411116,46.47025072,157.81,157.74,18.933972]
[1749729411316,46.47025072,157.81,157.76,14.13334731]
[1749729411624,32.33690341,157.81,157.77,14.13334731]
[1749729412804,32.33690341,157.81,157.78,14.13334731]
[1749729413005,32.33690341,157.81,157.77,14.13334731]
[1749729414220,46.47025072,157.81,157.76,14.13334731]
[1749729414821,14.13334731,157.79,157.75,14.13334731]
[1749729416026,6.3379389,157.78,157.75,14.13334731]
[1749729417831,6.3379389,157.78,157.73,1.6587]
[1749729418041,6.3379389,157.78,157.75,14.13334731]
[1749729419208,6.3379389,157.78,157.72,18.79181043]
[1749729419411,6.3379389,157.78,157.75,14.13334731]
[1749729419717,6.3379389,157.78,157.74,14.13334731]
[1749729420128,14.13334731,157.77,157.69,7.4241]
[1749729420328,14.13334731,157.77,157.72,14.13334731]
[1749729420608,14.13334731,157.77,157.7,18.64964886]
[1749729420813,14.13334731,157.76,157.72,14.13334731]
[1749729421613,14.13334731,157.77,157.72,14.13334731]
[1749729421815,6.33874239,157.76,157.72,14.13334731]
[1749729422030,6.33874239,157.76,157.73,14.13334731]
[1749729422537,6.33874239,157.76,157.72,14.13334731]
[1749729424341,6.33874239,157.76,157.7,18.64964886]
[1749729424517,6.33874239,157.76,157.72,14.13334731]
[1749729424922,6.33874239,157.76,157.7,18.64964886]
[1749729425228,6.33874239,157.76,157.72,14.13334731]
[1749729426943,20.4720897,157.76,157.7,18.64964886]
[1749729427158,20.4720897,157.76,157.72,14.13334731]
[1749729427335,6.33874239,157.76,157.72,14.13334731]
[1749729427647,20.4720897,157.76,157.72,14.13334731]
[1749729429251,15.38966321,157.76,157.72,9.05092082]
[1749729429747,9.05092082,157.75,157.7,18.64964886]
[1749729429933,9.05092082,157.74,157.69,14.97092082]
[1749729430138,9.05092082,157.75,157.71,9.05092082]
[1749729430329,22.18559837,157.76,157.71,9.05092082]
[1749729430526,9.05092082,157.75,157.71,9.05092082]
[1749729431337,6.33954608,157.74,157.71,9.05092082]
[1749729433945,15.84685598,157.76,157.71,9.05092082]
[1749729434333,9.05092082,157.75,157.71,9.05092082]
[1749729435456,6.33954608,157.74,157.71,9.05092082]
[1749729436166,7.7874,157.79,157.72,9.05092082]
[1749729436167,6.33834062,157.77,157.72,9.05092082]
[1749729436327,6.33834062,157.77,157.73,9.05092082]
[1749729436534,6.33834062,157.77,157.71,0.28432314]
[1749729436753,6.33834062,157.77,157.73,9.05092082]
[1749729438546,6.33834062,157.77,157.74,9.05092082]
[1749729438737,32.33808299,157.78,157.74,9.05092082]
[1749729439737,32.33808299,157.78,157.71,0.28432314]
[1749729439939,32.33808299,157.78,157.75,9.05092082]
[1749729440950,26.0,157.74,157.64,1.5569]
[1749729441135,6.5837,157.76,157.65,36.46]
[1749729441331,32.33808299,157.78,157.73,9.05092082]
[1749729441532,32.33808299,157.78,157.74,9.05092082]
[1749729441964,32.33808299,157.78,157.75,9.05092082]
[1749729442261,32.33808299,157.78,157.76,9.05092082]
[1749729442760,26.0,157.78,157.76,9.05092082]
[1749729443862,32.33795156,157.78,157.76,9.05092082]
[1749729445874,6.33761761,157.79,157.76,9.05092082]
[1749729446064,6.33761761,157.79,157.77,9.05092082]
[1749729447778,6.33713561,157.8,157.77,9.05092082]
[1749729448555,6.33713561,157.8,157.76,9.05092082]
[1749729450911,15.38805643,157.8,157.72,0.28432314]
[1749729451083,9.05092082,157.79,157.72,0.28432314]
[1749729451400,9.05092082,157.79,157.75,9.05092082]
[1749729451557,9.05092082,157.77,157.72,9.33524396]
[1749729451761,9.05092082,157.77,157.72,9.05092082]
[1749729451981,35.05092082,157.77,157.72,9.05092082]
[1749729452584,9.05092082,157.76,157.7,5.9]
[1749729452753,9.05092082,157.73,157.65,1.5692]
[1749729452954,9.05092082,157.72,157.67,9.05092082]
[1749729453158,48.1884113,157.74,157.66,18.64964886]
[1749729453373,9.05092082,157.73,157.68,9.05092082]
[1749729453758,48.1884113,157.74,157.68,9.05092082]
[1749729453957,9.05092082,157.73,157.68,9.05092082]
[1749729454259,9.05092082,157.72,157.68,9.05092082]
[1749729454663,9.05092082,157.72,157.68,18.64964886]
[1749729454664,15.3916122,157.72,157.68,18.64964886]
[1749729454868,15.3916122,157.72,157.68,27.70056968]
[1749729455268,15.3916122,157.72,157.68,14.14803729]
[1749729455269,6.34069138,157.72,157.68,14.14803729]
[1749729455790,6.34069138,157.72,157.67,0.28432314]
[1749729455971,6.34069138,157.72,157.69,14.14803729]
[1749729457175,6.34069138,157.72,157.67,0.28432314]
[1749729457371,6.34069138,157.72,157.68,14.14803729]
[1749729457591,6.34069138,157.72,157.67,0.28432314]
[1749729457790,6.34069138,157.72,157.68,14.14803729]
[1749729458594,6.34069138,157.72,157.67,0.28432314]
[1749729458779,6.34069138,157.72,157.68,14.14803729]
[1749729459167,6.34069138,157.72,157.67,0.28432314]
[1749729459367,6.34069138,157.72,157.68,14.14803729]
[1749729459786,20.48872867,157.72,157.67,0.28432314]
[1749729459979,14.14803729,157.71,157.66,32.79768615]
[1749729460295,14.14803729,157.7,157.66,18.64964886]
[1749729460507,14.14803729,157.69,157.65,14.14803729]
[1749729460872,20.48975097,157.69,157.64,18.64964886]
[1749729461195,6.34171368,157.69,157.64,18.64964886]
[1749729461498,6.34171368,157.69,157.65,14.14803729]
[1749729461869,6.34171368,157.69,157.64,18.64964886]
[1749729462068,6.34171368,157.69,157.65,14.14803729]
[1749729462269,6.34171368,157.69,157.66,14.14803729]
[1749729463091,6.34171368,157.69,157.64,18.64964886]
[1749729463288,6.34171368,157.69,157.66,14.14803729]
[1749729464389,20.48975097,157.69,157.64,18.64964886]
[1749729464578,6.34171368,157.69,157.66,14.14803729]
[1749729466197,6.34115409,157.7,157.64,18.64964886]
[1749729466395,6.34115409,157.7,157.66,14.14803729]
[1749729466570,6.34115409,157.7,157.64,18.64964886]
[1749729466571,6.34115409,157.7,157.67,14.14803729]
[1749729467196,6.34115409,157.7,157.65,0.28432314]
[1749729467374,6.34115409,157.7,157.67,14.14803729]
[1749729467873,6.34075201,157.71,157.68,14.14803729]
[1749729468091,6.34075201,157.71,157.65,0.28432314]
[1749729468270,6.34075201,157.71,157.68,14.14803729]
[1749729468468,6.34075201,157.71,157.65,0.28432314]
[1749729468695,6.34075201,157.71,157.68,14.14803729]
[1749729472180,6.34075201,157.71,157.67,14.14803729]
[1749729472504,6.34075201,157.71,157.65,0.28432314]
[1749729472680,6.34075201,157.71,157.67,14.14803729]
[1749729473503,6.34075201,157.71,157.65,0.28432314]
[1749729473807,6.34075201,157.71,157.67,14.14803729]
[1749729475384,6.34075201,157.71,157.65,0.28432314]
[1749729475577,6.34075201,157.71,157.67,14.14803729]
[1749729476696,20.48848055,157.72,157.68,14.14803729]
[1749729477000,6.34044326,157.72,157.68,14.14803729]
[1749729477174,6.34044326,157.72,157.68,9.05433722]
[1749729478102,6.34044326,157.72,157.65,0.28432314]
[1749729478284,6.34044326,157.72,157.68,9.05433722]
[1749729478605,9.05433722,157.72,157.68,9.05433722]
[1749729479390,9.05433722,157.72,157.65,0.28432314]
[1749729479686,9.05433722,157.72,157.68,9.05433722]
[1749729480390,9.05433722,157.71,157.67,9.05433722]
[1749729481392,9.05433722,157.71,157.65,0.28432314]
[1749729481587,35.05433722,157.69,157.64,27.70398608]
[1749729481906,9.05433722,157.68,157.64,18.64964886]
[1749729482404,6.34236062,157.67,157.64,18.64964886]
[1749729483007,6.34236062,157.67,157.63,14.95433722]
[1749729483178,6.34236062,157.67,157.63,5.9]
[1749729483381,20.4999138,157.67,157.63,20.05755318]
[1749729483604,20.4999138,157.67,157.63,5.9]
[1749729483906,20.4999138,157.67,157.63,20.05755318]
[1749729485301,6.34236062,157.67,157.63,5.9]
[1749729485484,6.34236062,157.67,157.64,14.15755318]
[1749729485887,6.34236062,157.67,157.63,5.9]
[1749729486198,6.34236062,157.67,157.64,14.15755318]
[1749729486391,6.34236062,157.67,157.63,5.9]
[1749729486585,20.4999138,157.67,157.63,20.05755318]
[1749729486989,20.4999138,157.67,157.62,18.64964886]
[1749729486990,6.34236062,157.67,157.59,18.64964886]
[1749729487198,14.15755318,157.65,157.61,18.64964886]
[1749729487784,14.15755318,157.65,157.61,14.15755318]